fUST/lending_fUST_20250606
["ID","MTS","AMOUNT","RATE_DAILY","PERIOD"]
[364590732,1749153343819,-2503.7881401,0.0001817,2]
[364590733,1749153343842,-350.85653046,0.0001817,2]
[364590734,1749153343865,-624.52002997,0.00018256,2]
[364590735,1749153343887,-937.46429947,0.00018356,2]
[364590736,1749153343948,-4416.629,0.00018356,2]
[364590737,1749153344120,-4416.629,0.00018356,2]
[364590738,1749153344262,-4416.629,0.00018356,2]
[364590739,1749153344407,-4416.629,0.00018356,2]
[364590740,1749153344544,-4416.629,0.00018356,2]
[364590741,1749153344695,-4416.629,0.00018356,2]
[364590742,1749153344841,-4020.22991362,0.00018356,2]
[364590743,1749153344870,-396.39908638,0.00018356,2]
[364590744,1749153363988,150.0,0.00017232,2]
[364590745,1749153375916,-300.0,0.00018168,2]
[364590746,1749153375940,-300.0,0.00018355,2]
[364590747,1749153375964,-43.60091362,0.00018356,2]
[364590748,1749153375987,-440.0,0.00018356,2]
[364590749,1749153376012,-430.0,0.00018356,2]
[364590750,1749153376038,-430.0,0.00018356,2]
[364590751,1749153376060,-430.0,0.00018356,2]
[364590752,1749153376082,-440.0,0.00018356,2]
[364590753,1749153376105,-440.0,0.00018356,2]
[364590754,1749153376127,-440.0,0.00018356,2]
[364590755,1749153376150,-440.0,0.00018356,2]
[364590756,1749153376174,-219.62909382,0.00018356,2]
[364590757,1749153376195,-440.0,0.00018356,2]
[364590758,1749153376219,-440.0,0.00018356,2]
[364590759,1749153376242,-440.0,0.00018356,2]
[364590760,1749153376264,-440.0,0.00018356,2]
[364590761,1749153376288,-430.0,0.00018356,2]
[364590762,1749153376312,-360.0,0.00018356,2]
[364590763,1749153376337,-440.0,0.00018356,2]
[364590764,1749153376360,-440.0,0.00018356,2]
[364590765,1749153376385,-440.0,0.00018356,2]
[364590766,1749153376407,-440.0,0.00018356,2]
[364590767,1749153376429,-440.0,0.00018356,2]
[364590768,1749153376453,-440.0,0.00018356,2]
[364590769,1749153376476,-440.0,0.00018356,2]
[364590770,1749153376497,-440.0,0.00018356,2]
[364590771,1749153376519,-503.9,0.00018356,2]
[364590772,1749153376543,-28.59424256,0.00018356,2]
[364590773,1749153376571,-411.40575744,0.00018356,2]
[364590774,1749153376594,-440.0,0.00018356,2]
[364590775,1749153376617,-420.0,0.0001863,2]
[364590776,1749153376641,-440.0,0.0001863,2]
[364590777,1749153376666,-440.0,0.0001863,2]
[364590778,1749153376690,-440.0,0.0001863,2]
[364590779,1749153376716,-440.0,0.0001863,2]
[364590780,1749153376740,-440.0,0.0001863,2]
[364590781,1749153376765,-440.0,0.0001863,2]
[364590782,1749153376792,-440.0,0.0001863,2]
[364590783,1749153376817,-430.0,0.0001863,2]
[364590784,1749153376843,-440.0,0.0001863,2]
[364590785,1749153376867,-430.0,0.0001863,2]
[364590786,1749153376889,-440.0,0.0001863,2]
[364590787,1749153376914,-440.0,0.0001863,2]
[364590788,1749153376937,-440.0,0.0001863,2]
[364590789,1749153376964,-440.0,0.0001863,2]
[364590790,1749153376988,-440.0,0.0001863,2]
[364590791,1749153377011,-236.61,0.00018799,2]
[364590792,1749153377036,-500.0,0.00018899,2]
[364590793,1749153377058,-440.0,0.00018899,2]
[364590794,1749153377080,-203.19272075,0.00018899,2]
[364590795,1749153377102,-430.0,0.00018899,2]
[364590796,1749153377125,-430.0,0.00018899,2]
[364590797,1749153377148,-430.0,0.00018899,2]
[364590798,1749153377170,-430.0,0.00018899,2]
[364590799,1749153377193,-4.51577181,0.00018899,2]
[364590800,1749153377220,-515.89601103,0.00018899,2]
[364590801,1749153377243,-430.0,0.00018899,2]
[364590802,1749153377265,-430.0,0.00018899,2]
[364590803,1749153377290,-302.94783816,0.00018899,2]
[364590804,1749153377313,-430.0,0.00018899,2]
[364590805,1749153377337,-440.0,0.00018899,2]
[364590806,1749153377359,-430.0,0.00018899,2]
[364590807,1749153377381,-409.17475399,0.00018899,2]
[364590808,1749153377402,-430.0,0.00018899,2]
[364590809,1749153377425,-440.0,0.00018899,2]
[364590810,1749153377447,-440.0,0.00018899,2]
[364590811,1749153377470,-440.0,0.00018899,2]
[364590812,1749153377491,-440.0,0.00018899,2]
[364590813,1749153377513,-440.0,0.00018899,2]
[364590814,1749153377537,-430.0,0.00018899,2]
[364590815,1749153377561,-400.0,0.00018899,2]
[364590816,1749153377586,-484.46887923,0.00018899,2]
[364590817,1749153377609,-430.0,0.00018899,2]
[364590818,1749153377632,-430.0,0.00018899,2]
[364590819,1749153377657,-430.0,0.00018899,2]
[364590820,1749153377684,-440.0,0.00018899,2]
[364590821,1749153377854,-440.0,0.00018899,2]
[364590822,1749153377880,-430.0,0.00018899,2]
[364590823,1749153377905,-440.0,0.00018899,2]
[364590824,1749153377930,-430.0,0.00018899,2]
[364590825,1749153377953,-153.23676759,0.00018899,2]
[364590826,1749153378079,-240.80483191,0.00018899,2]
[364590827,1749153378103,-440.0,0.00018899,2]
[364590828,1749153378126,-403.07429824,0.00018899,2]
[364590829,1749153378149,-430.0,0.00018899,2]
[364590830,1749153378173,-440.0,0.00018899,2]
[364590831,1749153378197,-440.0,0.00018899,2]
[364590832,1749153378222,-440.0,0.00018899,2]
[364590833,1749153378246,-440.0,0.00018899,2]
[364590834,1749153378273,-440.0,0.00018899,2]
[364590835,1749153378301,-440.0,0.00018899,2]
[364590836,1749153378325,-440.0,0.00018899,2]
[364590837,1749153378352,-440.0,0.00018899,2]
[364590838,1749153378376,-440.0,0.00018899,2]
[364590839,1749153378400,-390.0,0.00018904,2]
[364590840,1749153378427,-440.0,0.00018904,2]
[364590841,1749153378452,-440.0,0.00018904,2]
[364590842,1749153378480,-440.0,0.00018904,2]
[364590843,1749153378505,-440.0,0.00018904,2]
[364590844,1749153378532,-440.0,0.00018904,2]
[364590845,1749153378560,-440.0,0.00018904,2]
[364590846,1749153378586,-440.0,0.00018904,2]
[364590847,1749153378610,-217.74,0.00018904,2]
[364590848,1749153378633,-440.0,0.00018904,2]
[364590849,1749153378658,-440.0,0.00018904,2]
[364590850,1749153378683,-410.0,0.00018904,2]
[364590851,1749153378706,-440.0,0.00018904,2]
[364590852,1749153378730,-64.10511985,0.00018927,2]
[364590853,1749153378772,-435.89488015,0.00018927,2]
[364590854,1749153378799,-440.0,0.00018939,2]
[364590855,1749153378824,-430.0,0.00018939,2]
[364590856,1749153378850,-440.0,0.00018939,2]
[364590857,1749153378875,-440.0,0.00018939,2]
[364590858,1749153378899,-440.0,0.00018939,2]
[364590859,1749153378923,-440.0,0.00018939,2]
[364590860,1749153378954,-440.0,0.00018939,2]
[364590861,1749153378981,-440.0,0.00018939,2]
[364590862,1749153379005,-430.0,0.00018939,2]
[364590863,1749153379028,-440.0,0.00018939,2]
[364590864,1749153379053,-440.0,0.00018939,2]
[364590865,1749153379077,-440.0,0.00018939,2]
[364590866,1749153379101,-430.0,0.00018939,2]
[364590867,1749153379128,-500.0,0.00018939,2]
[364590868,1749153379152,-440.0,0.00018939,2]
[364590869,1749153379179,-440.0,0.00018939,2]
[364590870,1749153379208,-360.0,0.00018939,2]
[364590871,1749153379241,-440.0,0.00018939,2]
[364590872,1749153379271,-440.0,0.00018939,2]
[364590873,1749153379303,-440.0,0.00018939,2]
[364590874,1749153379331,-400.0,0.00018939,2]
[364590875,1749153379363,-561.89753536,0.00018939,2]
[364590876,1749153379391,-440.0,0.00018939,2]
[364590877,1749153379503,367.93183449,0.00018899,2]
[364590878,1749153379534,72.06816551,0.00018899,2]
[364590879,1749153380996,440.0,0.00018899,2]
[364590880,1749153382230,440.0,0.00018939,2]
[364590881,1749153383253,430.0,0.00018356,2]
[364590882,1749153384056,500.0,0.00018904,2]
[364590883,1749153388224,440.0,0.00018356,2]
[364590884,1749153388389,440.0,0.0001863,2]
[364590885,1749153388646,430.0,0.00018904,2]
[364590886,1749153393047,440.0,0.00018939,2]
[364590887,1749153397901,509.095387,0.00018429,2]
[364590888,1749153398432,440.0,0.00018939,2]
[364590889,1749153404499,458.97257767,0.00018939,2]
[364590890,1749153404751,440.0,0.00018939,2]
[364590891,1749153407509,430.0,0.00018356,2]
[364590892,1749153408956,440.0,0.00018939,2]
[364590893,1749153409162,440.0,0.00018939,2]
[364590894,1749153410928,440.0,0.00018356,2]
[364590895,1749153411182,440.0,0.0001863,2]
[364590896,1749153411433,440.0,0.00018904,2]
[364590897,1749153418219,440.0,0.00018356,2]
[364590898,1749153418474,430.0,0.0001863,2]
[364590899,1749153422332,430.0,0.00018356,2]
[364590900,1749153422725,440.0,0.00018356,2]
[364590901,1749153422976,440.0,0.0001863,2]
[364590902,1749153423226,440.0,0.00018904,2]
[364590903,1749153433190,225.58811982,0.00018939,2]
[364590904,1749153433213,194.41188018,0.00018939,2]
[364590905,1749153434264,430.0,0.00018899,2]
[364590906,1749153437388,150.0,0.00017259,2]
[364590907,1749153438310,222.55,0.00018828,2]
[364590908,1749153443195,440.0,0.00018899,2]
[364590909,1749153445371,440.0,0.00018899,2]
[364590910,1749153446025,430.0,0.00018899,2]
[364590911,1749153449666,440.0,0.00018939,2]
[364590912,1749153452938,440.0,0.00018356,2]
[364590913,1749153453233,440.0,0.0001863,2]
[364590914,1749153453497,440.0,0.00018904,2]
[364590915,1749153453738,430.0,0.00018899,2]
[364590916,1749153454140,440.0,0.00018899,2]
[364590917,1749153455675,376.09967657,0.00018899,2]
[364590918,1749153459861,355.15836169,0.00018356,2]
[364590919,1749153461006,430.0,0.00018899,2]
[364590920,1749153465174,440.0,0.00018939,2]
[364590921,1749153465796,350.0,0.00018899,2]
[364590922,1749153468330,1527.46,0.00018356,2]
[364590923,1749153468594,1527.46,0.0001863,2]
[364590924,1749153468841,1012.58433156,0.00018904,2]
[364590925,1749153468871,514.87566844,0.00018904,2]
[364590926,1749153473722,370.0,0.00018899,2]
[364590927,1749153479243,440.0,0.00018899,2]
[364590928,1749153483943,440.0,0.00018899,2]
[364590929,1749153485307,674.28,0.00018356,2]
[364590930,1749153485573,674.28,0.0001863,2]
[364590931,1749153485842,674.28,0.00018904,2]
[364590932,1749153488124,430.0,0.00018899,2]
[364590933,1749153489823,725.98,0.00018939,2]
[364590934,1749153495121,430.0,0.00018899,2]
[364590935,1749153495403,793.82,0.00018356,2]
[364590936,1749153495672,793.82,0.0001863,2]
[364590937,1749153495941,793.82,0.00018904,2]
[364590939,1749153499808,440.0,0.00018899,2]
[364590940,1749153501336,440.0,0.00018356,2]
[364590941,1749153501588,440.0,0.0001863,2]
[364590942,1749153502195,440.0,0.00018904,2]
[364590943,1749153507344,440.0,0.00018899,2]
[364590944,1749153509611,430.0,0.00018899,2]
[364590945,1749153513246,150.0,0.00017198,2]
[364590946,1749153513736,209.0,0.00018761,2]
[364590947,1749153515330,211.56858156,0.00018899,2]
[364590948,1749153515353,228.43141844,0.00018899,2]
[364590949,1749153516470,440.0,0.00018356,2]
[364590950,1749153516726,440.0,0.0001863,2]
[364590951,1749153516902,430.0,0.00018899,2]
[364590952,1749153518716,440.0,0.00018356,2]
[364590953,1749153518956,440.0,0.0001863,2]
[364590954,1749153519207,440.0,0.00018904,2]
[364590955,1749153520252,440.0,0.00018939,2]
[364590956,1749153522683,440.0,0.00018899,2]
[364590957,1749153528907,430.0,0.00018899,2]
[364590958,1749153530822,440.0,0.00018939,2]
[364590959,1749153531133,430.0,0.00018899,2]
[364590960,1749153531286,440.0,0.00018356,2]
[364590961,1749153531579,440.0,0.0001863,2]
[364590962,1749153531786,440.0,0.00018904,2]
[364590963,1749153534464,491.67,0.00018356,2]
[364590964,1749153534714,491.67,0.0001863,2]
[364590965,1749153534983,491.67,0.00018904,2]
[364590966,1749153538614,469.76,0.00018899,2]
[364590967,1749153539598,440.0,0.00018899,2]
[364590968,1749153543443,440.0,0.00018899,2]
[364590969,1749153548201,440.0,0.00018356,2]
[364590970,1749153548441,440.0,0.0001863,2]
[364590971,1749153549108,410.0,0.00018904,2]
[364590972,1749153552562,440.0,0.00018356,2]
[364590973,1749153552813,42.52283156,0.0001863,2]
[364590974,1749153552836,397.47716844,0.0001863,2]
[364590975,1749153553072,440.0,0.00018904,2]
[364590977,1749153560730,440.0,0.00018939,2]
[364590978,1749153560921,1170.35,0.00018356,2]
[364590979,1749153561186,1170.35,0.0001863,2]
[364590980,1749153561439,1170.35,0.00018904,2]
[364590981,1749153571165,440.0,0.00018939,2]
[364590982,1749153573798,440.0,0.00018356,2]
[364590983,1749153574046,151.57878815,0.0001863,2]
[364590984,1749153575451,409.55664954,0.00018899,2]
[364590985,1749153576135,440.0,0.00018356,2]
[364590986,1749153576382,440.0,0.0001863,2]
[364590987,1749153576628,440.0,0.00018904,2]
[364590988,1749153579698,440.0,0.00018356,2]
[364590989,1749153579950,440.0,0.0001863,2]
[364590990,1749153580199,410.0,0.00018904,2]
[364590991,1749153582021,430.0,0.00018899,2]
[364590992,1749153583177,440.0,0.00018899,2]
[364590993,1749153584459,440.0,0.00018356,2]
[364590994,1749153584714,440.0,0.0001863,2]
[364590995,1749153584986,366.06164387,0.00018904,2]
[364590996,1749153585141,43.93835613,0.00018904,2]
[364590997,1749153587585,150.0,0.00017253,2]
[364590998,1749153588073,195.95,0.00018822,2]
[364590999,1749153591049,294.86741398,0.00018939,2]
[364591000,1749153603295,430.0,0.00018356,2]
[364591001,1749153605301,440.0,0.00018356,2]
[364591002,1749153605548,574.47,0.0001863,2]
[364591003,1749153608079,440.0,0.00018356,2]
[364591004,1749153608351,517.38,0.0001863,2]
[364591005,1749153608615,440.0,0.00018939,2]
[364591006,1749153610920,-300.0,0.00019172,2]
[364591007,1749153610944,-1200.0,0.00019172,2]
[364591008,1749153610967,-300.0,0.00019172,2]
[364591009,1749153610995,-300.0,0.00019172,2]
[364591010,1749153611019,-300.0,0.00019172,2]
[364591011,1749153611043,-420.0,0.00019173,2]
[364591012,1749153611069,-440.0,0.00019173,2]
[364591013,1749153611091,-430.0,0.00019173,2]
[364591014,1749153611113,-280.69362332,0.00019173,2]
[364591015,1749153611136,-440.0,0.00019173,2]
[364591016,1749153611161,-517.29,0.00019173,2]
[364591017,1749153611185,-420.0,0.00019173,2]
[364591018,1749153611208,-420.0,0.00019173,2]
[364591019,1749153611235,-440.0,0.00019173,2]
[364591020,1749153611260,-469.76,0.00019173,2]
[364591021,1749153611284,-390.0,0.00019173,2]
[364591022,1749153611308,-440.0,0.00019173,2]
[364591023,1749153611330,-440.0,0.00019178,2]
[364591024,1749153611355,-169.31937668,0.00019178,2]
[364591025,1749153611383,-177.12873576,0.00019178,2]
[364591026,1749153611408,-440.0,0.00019178,2]
[364591027,1749153611434,-440.0,0.00019178,2]
[364591028,1749153611459,-440.0,0.00019178,2]
[364591029,1749153611485,-459.75,0.00019178,2]
[364591030,1749153611508,-440.0,0.00019178,2]
[364591031,1749153611531,-440.0,0.00019178,2]
[364591032,1749153611554,-440.0,0.00019178,2]
[364591033,1749153611577,-440.0,0.00019178,2]
[364591034,1749153611601,-1527.46,0.00019178,2]
[364591035,1749153611626,-674.28,0.00019178,2]
[364591036,1749153611652,-793.82,0.00019178,2]
[364591037,1749153611676,-440.0,0.00019178,2]
[364591038,1749153611698,-498.86552136,0.00019178,2]
[364591039,1749153611723,-410.0,0.00019178,2]
[364591040,1749153611753,-55.75874288,0.00019178,2]
[364591041,1749153611784,-435.91125712,0.00019178,2]
[364591042,1749153611810,-440.0,0.00019178,2]
[364591043,1749153611837,-1170.35,0.00019178,2]
[364591044,1749153611863,-440.0,0.00019178,2]
[364591045,1749153611885,-173.8993041,0.00019178,2]
[364591046,1749153611909,-420.0,0.00019213,2]
[364591047,1749153611934,-440.0,0.00019213,2]
[364591048,1749153611957,-420.0,0.00019213,2]
[364591049,1749153611988,-440.0,0.00019213,2]
[364591050,1749153612011,-276.01600023,0.00019213,2]
[364591051,1749153612036,-440.0,0.00019213,2]
[364591052,1749153612062,-725.98,0.00019213,2]
[364591053,1749153612086,-440.0,0.00019213,2]
[364591054,1749153612110,-440.0,0.00019213,2]
[364591055,1749153612270,-440.0,0.00019213,2]
[364591056,1749153612295,-440.0,0.00019213,2]
[364591057,1749153612318,-166.99,0.00019213,2]
[364591058,1749153612340,-367.91643855,0.00019352,2]
[364591059,1749153612375,-238.53557803,0.00019352,2]
[364591060,1749153612399,-440.0,0.00019447,2]
[364591061,1749153612421,-440.0,0.00019447,2]
[364591062,1749153612442,-440.0,0.00019447,2]
[364591063,1749153612466,-469.76,0.00019447,2]
[364591064,1749153612492,-440.0,0.00019447,2]
[364591065,1749153612516,-440.0,0.00019452,2]
[364591066,1749153612540,-440.0,0.00019452,2]
[364591067,1749153612564,-440.0,0.00019452,2]
[364591068,1749153612588,-440.0,0.00019452,2]
[364591069,1749153612611,-440.0,0.00019452,2]
[364591070,1749153612636,-440.0,0.00019452,2]
[364591071,1749153612662,-440.0,0.00019452,2]
[364591072,1749153612688,-1527.46,0.00019452,2]
[364591073,1749153612715,-674.28,0.00019452,2]
[364591074,1749153612745,-367.02742197,0.00019452,2]
[364591075,1749153612781,-426.79257803,0.00019452,2]
[364591076,1749153612806,-440.0,0.00019452,2]
[364591077,1749153612831,-491.67,0.00019452,2]
[364591078,1749153612857,-440.0,0.00019452,2]
[364591079,1749153612883,-1170.35,0.00019452,2]
[364591080,1749153612908,-440.0,0.00019452,2]
[364591081,1749153612932,-440.0,0.00019487,2]
[364591082,1749153612956,-440.0,0.00019487,2]
[364591083,1749153612983,-440.0,0.00019487,2]
[364591084,1749153613010,-725.98,0.00019487,2]
[364591085,1749153613034,-440.0,0.00019487,2]
[364591086,1749153613060,-440.0,0.00019487,2]
[364591087,1749153613085,-440.0,0.00019487,2]
[364591088,1749153613110,-440.0,0.00019487,2]
[364591089,1749153613132,-902.27042197,0.00019628,2]
[364591090,1749153613198,-8117.063,0.00019628,2]
[364591091,1749153613331,-3655.7823898,0.00019628,2]
[364591092,1749153613353,-229.48950782,0.00019628,2]
[364591093,1749153613377,-423.7637613,0.00019628,2]
[364591094,1749153613399,-212.94059491,0.00019628,2]
[364591095,1749153613421,-160.0,0.00019628,2]
[364591096,1749153613444,-842.5625,0.00019694,2]
[364591097,1749153613470,-440.0,0.00019721,2]
[364591098,1749153613494,-410.0,0.00019721,2]
[364591099,1749153613516,-420.0,0.00019721,2]
[364591100,1749153613543,-469.76,0.00019721,2]
[364591101,1749153613567,-440.0,0.00019721,2]
[364591102,1749153613590,-412.76424617,0.00019726,2]
[364591103,1749153613621,-27.23575383,0.00019726,2]
[364591104,1749153613646,-440.0,0.00019726,2]
[364591105,1749153613669,-440.0,0.00019726,2]
[364591106,1749153613691,-390.0,0.00019726,2]
[364591107,1749153613714,-439.45407682,0.00019726,2]
[364591108,1749153613740,-440.0,0.00019726,2]
[364591109,1749153613764,-400.0,0.00019726,2]
[364591110,1749153613789,-1527.46,0.00019726,2]
[364591111,1749153613815,-674.28,0.00019726,2]
[364591112,1749153613840,-793.82,0.00019726,2]
[364591113,1749153613864,-440.0,0.00019726,2]
[364591114,1749153613889,-491.67,0.00019726,2]
[364591115,1749153613914,-440.0,0.00019726,2]
[364591116,1749153613940,-1170.35,0.00019726,2]
[364591117,1749153613965,-2.79316935,0.00019726,2]
[364591118,1749153614001,-437.20683065,0.00019726,2]
[364591119,1749153614025,-440.0,0.00019761,2]
[364591120,1749153614049,-525.62,0.00019761,2]
[364591121,1749153614075,-167.24,0.00019761,2]
[364591122,1749153614100,-725.98,0.00019761,2]
[364591123,1749153614124,-233.60261158,0.00019761,2]
[364591124,1749153614148,-440.0,0.00019761,2]
[364591125,1749153614172,-440.0,0.00019761,2]
[364591126,1749153614197,-440.0,0.00019761,2]
[364591127,1749153614220,-420.0,0.0001982,2]
[364591128,1749153614244,-234.894,0.00019909,2]
[364591129,1749153614271,-440.0,0.00019995,2]
[364591130,1749153614296,-469.76,0.00019995,2]
[364591131,1749153614320,-440.0,0.00019995,2]
[364591132,1749153614344,-440.0,0.0002,2]
[364591133,1749153614367,-440.0,0.0002,2]
[364591134,1749153614390,-201.11,0.0002,2]
[364591135,1749153614413,-478.1225301,0.0002,2]
[364591136,1749153614438,-703.52702767,0.0002,2]
[364591137,1749153614478,164.15,0.00018939,2]
[364591138,1749153614530,-823.93297233,0.0002,2]
[364591139,1749153614556,-674.28,0.0002,2]
[364591140,1749153614582,-793.82,0.0002,2]
[364591141,1749153614605,-440.0,0.0002,2]
[364591142,1749153614631,-491.67,0.0002,2]
[364591143,1749153614656,-440.0,0.0002,2]
[364591144,1749153614683,-1170.35,0.0002,2]
[364591145,1749153614715,-440.0,0.0002,2]
[364591146,1749153614826,440.0,0.00019451,2]
[364591147,1749153615563,440.0,0.00018899,2]
[364591148,1749153620287,440.0,0.00018939,2]
[364591149,1749153620545,440.0,0.00019213,2]
[364591150,1749153620928,420.0,0.00019487,2]
[364591151,1749153623675,440.0,0.00018356,2]
[364591152,1749153623865,223.01002767,0.0001863,2]
[364591153,1749153623888,216.98997233,0.0001863,2]
[364591154,1749153624444,356.93256289,0.00018904,2]
[364591155,1749153625840,430.0,0.00018899,2]
[364591156,1749153626303,292.2737234,0.00018356,2]
[364591157,1749153628428,440.0,0.00018899,2]
[364591158,1749153628567,430.0,0.00018356,2]
[364591159,1749153630397,430.0,0.00018356,2]
[364591160,1749153630682,430.0,0.00018356,2]
[364591161,1749153630722,440.0,0.00018939,2]
[364591162,1749153631121,440.0,0.00018939,2]
[364591163,1749153632685,440.0,0.00018356,2]
[364591164,1749153632928,440.0,0.0001863,2]
[364591165,1749153633251,310.36280278,0.00018904,2]
[364591166,1749153634101,440.0,0.00018356,2]
[364591167,1749153634382,440.0,0.0001863,2]
[364591168,1749153634642,440.0,0.00018904,2]
[364591169,1749153637103,430.0,0.00018356,2]
[364591170,1749153637592,418.40941849,0.00018899,2]
[364591171,1749153637616,21.59058151,0.00018899,2]
[364591172,1749153645988,430.0,0.00018356,2]
[364591173,1749153653288,440.0,0.00018356,2]
[364591174,1749153653582,202.7,0.0001863,2]
[364591175,1749153653822,440.0,0.00018899,2]
[364591176,1749153655143,430.0,0.00018939,2]
[364591177,1749153657619,440.0,0.00018939,2]
[364591178,1749153660591,150.0,0.00017265,2]
[364591179,1749153661079,191.97,0.00018835,2]
[364591181,1749153675431,440.0,0.00018356,2]
[364591182,1749153675681,440.0,0.0001863,2]
[364591183,1749153675931,440.0,0.00018904,2]
[364591184,1749153678486,157.456329,0.00018939,2]
[364591185,1749153689859,440.0,0.00018939,2]
[364591186,1749153690087,515.74,0.00018356,2]
[364591188,1749153702378,440.0,0.00018356,2]
[364591189,1749153702440,420.0,0.00018356,2]
[364591190,1749153702969,440.0,0.0001863,2]
[364591191,1749153703227,188.54,0.00018904,2]
[364591192,1749153712666,440.0,0.00018356,2]
[364591193,1749153712941,440.0,0.0001863,2]
[364591194,1749153713203,193.37,0.00018904,2]
[364591195,1749153714125,440.0,0.00018939,2]
[364591196,1749153716244,440.0,0.00018899,2]
[364591197,1749153716348,440.0,0.00018356,2]
[364591198,1749153716951,440.0,0.00018939,2]
[364591199,1749153723615,292.47669009,0.00018939,2]
[364591200,1749153723943,440.0,0.0001863,2]
[364591201,1749153724194,312.92834923,0.00018356,2]
[364591202,1749153724228,408.95230017,0.00018904,2]
[364591203,1749153724254,31.04769983,0.00018904,2]
[364591204,1749153729110,440.0,0.00018939,2]
[364591205,1749153731378,430.0,0.00018939,2]
[364591206,1749153734067,420.0,0.00018356,2]
[364591207,1749153734337,150.0,0.00017269,2]
[364591208,1749153734981,179.54,0.00018839,2]
[364591209,1749153750145,430.0,0.00018939,2]
[364591210,1749153757494,440.0,0.00018356,2]
[364591211,1749153757766,410.0,0.0001863,2]
[364591213,1749153767107,440.0,0.00018939,2]
[364591214,1749153771782,440.0,0.00018939,2]
[364591215,1749153772589,440.0,0.00018939,2]
[364591216,1749153784817,430.0,0.00018899,2]
[364591217,1749153795077,440.0,0.00018356,2]
[364591218,1749153795346,410.0,0.0001863,2]
[364591219,1749153805780,-440.0,0.00019173,2]
[364591220,1749153805804,-420.0,0.00019173,2]
[364591221,1749153805831,-440.0,0.00019178,2]
[364591222,1749153805857,-440.0,0.00019178,2]
[364591223,1749153805882,-440.0,0.00019178,2]
[364591224,1749153805909,-440.0,0.00019178,2]
[364591225,1749153805933,-258.97890036,0.00019212,2]
[364591226,1749153805956,-433.05019099,0.00019212,2]
[364591227,1749153805979,-300.0,0.00019212,2]
[364591228,1749153806002,-440.0,0.00019212,2]
[364591229,1749153806026,-440.0,0.00019213,2]
[364591230,1749153806050,-440.0,0.00019213,2]
[364591231,1749153806073,-440.0,0.00019213,2]
[364591232,1749153806096,-430.0,0.00019213,2]
[364591233,1749153806121,-440.0,0.00019213,2]
[364591234,1749153806146,-254.37795674,0.00019213,2]
[364591235,1749153806170,-440.0,0.00019213,2]
[364591236,1749153806193,-440.0,0.00019213,2]